[Event "*** Titled Tuesday 3|2 Blitz"]
[Site "Chess.com"]
[Date "2015.05.05"]
[Round "8"]
[White "Kacparov"]
[Black "GeorgMeier"]
[Result "1-0"]
[WhiteElo "2489"]
[BlackElo "2712"]
[TimeControl "180+2"]
[EndTime "12:46:24 PDT"]
[Termination "Kacparov won by resignation"]

1. e4 {[%clk 0:03:01.9]} 1... e6 {[%clk 0:03:01.9]} 2. d4 {[%clk 0:03:00.4]}
2... d5 {[%clk 0:03:03.1]} 3. Nd2 {[%clk 0:03:01.1]} 3... dxe4 {[%clk
0:03:04.3]} 4. Nxe4 {[%clk 0:03:00.5]} 4... Nd7 {[%clk 0:03:05.7]} 5. Nf3 {[%clk
0:03:00.4]} 5... Ngf6 {[%clk 0:03:07.3]} 6. Bd3 {[%clk 0:03:01.5]} 6... c5
{[%clk 0:03:08]} 7. Nxf6+ {[%clk 0:02:59.9]} 7... Nxf6 {[%clk 0:03:09.9]} 8. Bg5
{[%clk 0:02:55.9]} 8... cxd4 {[%clk 0:03:06.5]} 9. Nxd4 {[%clk 0:02:49.5]} 9...
Bc5 {[%clk 0:02:56.9]} 10. Nb3 {[%clk 0:02:45.1]} 10... Bd6 {[%clk 0:02:53.6]}
11. Qf3 {[%clk 0:02:42.8]} 11... h6 {[%clk 0:02:43.9]} 12. Bxf6 {[%clk
0:02:40.6]} 12... Qxf6 {[%clk 0:02:42.9]} 13. Qxf6 {[%clk 0:02:40.7]} 13... gxf6
{[%clk 0:02:43.1]} 14. O-O-O {[%clk 0:02:37.6]} 14... Ke7 {[%clk 0:02:31.7]} 15.
Be4 {[%clk 0:02:33.7]} 15... Rd8 {[%clk 0:02:28]} 16. g3 {[%clk 0:02:31.7]}
16... Rb8 {[%clk 0:02:26.2]} 17. f4 {[%clk 0:02:26.6]} 17... f5 {[%clk
0:02:23.7]} 18. Bf3 {[%clk 0:02:26.9]} 18... Bd7 {[%clk 0:02:23]} 19. Rhe1
{[%clk 0:02:27]} 19... Be8 {[%clk 0:02:19.6]} 20. c3 {[%clk 0:02:21.4]} 20...
Bc7 {[%clk 0:02:12.1]} 21. Nc5 {[%clk 0:02:18.4]} 21... Rxd1+ {[%clk 0:01:32.7]}
22. Rxd1 {[%clk 0:02:18.9]} 22... a5 {[%clk 0:01:08.7]} 23. Nxb7 {[%clk
0:02:16.1]} 23... f6 {[%clk 0:01:07.5]} 24. Nc5 {[%clk 0:02:11.7]} 24... Bb6
{[%clk 0:01:05.4]} 25. Nb3 {[%clk 0:01:58.3]} 25... e5 {[%clk 0:01:05.9]} 26.
Nd2 {[%clk 0:01:36.2]} 26... Bf7 {[%clk 0:00:58.7]} 27. b3 {[%clk 0:01:26.8]}
27... Rc8 {[%clk 0:00:45.8]} 28. Kc2 {[%clk 0:01:25]} 28... Bd4 {[%clk
0:00:44.9]} 29. c4 {[%clk 0:01:17.7]} 29... h5 {[%clk 0:00:33.8]} 30. Be2 {[%clk
0:01:05.9]} 30... Bc5 {[%clk 0:00:26.5]} 31. Nf3 {[%clk 0:01:04.6]} 31... Bd6
{[%clk 0:00:25.4]} 32. Nh4 {[%clk 0:01:02.8]} 32... Ke6 {[%clk 0:00:18.9]} 33.
Bd3 {[%clk 0:00:46.1]} 33... e4 {[%clk 0:00:15.9]} 34. Bf1 {[%clk 0:00:46.9]}
34... a4 {[%clk 0:00:10.9]} 35. Bh3 {[%clk 0:00:46.9]} 35... axb3+ {[%clk
0:00:06.7]} 36. axb3 {[%clk 0:00:48.8]} 36... Ra8 {[%clk 0:00:07.7]} 37. Nxf5
{[%clk 0:00:46]} 37... Bb4 {[%clk 0:00:07.2]} 38. Kb2 {[%clk 0:00:17.3]} 38...
Bg6 {[%clk 0:00:06.1]} 39. Nh4+ {[%clk 0:00:17.5]} 39... Kf7 {[%clk 0:00:05.1]}
40. Rd7+ {[%clk 0:00:18.1]} 40... Ke8 {[%clk 0:00:06.2]} 41. Nxg6 {[%clk
0:00:18.5]} 41... e3 {[%clk 0:00:07.8]} 42. Rd3 {[%clk 0:00:15.9]} 42... Bc5
{[%clk 0:00:09]} 43. Bf1 {[%clk 0:00:14.8]} 43... Kf7 {[%clk 0:00:09]} 44. Nh4
{[%clk 0:00:15.6]} 44... Re8 {[%clk 0:00:08.2]} 45. Be2 {[%clk 0:00:16.7]} 1-0

[Event "*** Titled Tuesday 3|2 Blitz"]
[Site "Chess.com"]
[Date "2015.05.05"]
[Round "8"]
[White "Zvonokchess"]
[Black "Boryboy"]
[Result "1-0"]
[WhiteElo "2504"]
[BlackElo "2423"]
[TimeControl "180+2"]
[EndTime "12:46:36 PDT"]
[Termination "Zvonokchess won by checkmate"]

1. e4 {[%clk 0:03:01.9]} 1... e6 {[%clk 0:03:01.1]} 2. d4 {[%clk 0:03:02.9]}
2... d5 {[%clk 0:03:02.3]} 3. Nd2 {[%clk 0:03:04.2]} 3... h6 {[%clk 0:03:03.2]}
4. Ngf3 {[%clk 0:03:04.1]} 4... Nf6 {[%clk 0:03:03]} 5. Bd3 {[%clk 0:03:05.2]}
5... Nfd7 {[%clk 0:03:04.5]} 6. O-O {[%clk 0:03:00]} 6... Be7 {[%clk 0:03:05.5]}
7. c4 {[%clk 0:02:54.6]} 7... dxc4 {[%clk 0:03:03.1]} 8. Nxc4 {[%clk 0:02:55.3]}
8... a6 {[%clk 0:02:56.8]} 9. Qe2 {[%clk 0:02:52.7]} 9... b5 {[%clk 0:02:57.6]}
10. Ne3 {[%clk 0:02:53.5]} 10... Bb7 {[%clk 0:02:58.7]} 11. Rd1 {[%clk
0:02:54.2]} 11... Nc6 {[%clk 0:02:54.1]} 12. d5 {[%clk 0:02:43.8]} 12... exd5
{[%clk 0:02:44.9]} 13. exd5 {[%clk 0:02:36.4]} 13... Nb4 {[%clk 0:02:37.8]} 14.
Nf5 {[%clk 0:02:33.3]} 14... Kf8 {[%clk 0:02:31.6]} 15. Be4 {[%clk 0:02:11.4]}
15... Nc5 {[%clk 0:02:16.1]} 16. d6 {[%clk 0:01:35]} 16... Bxd6 {[%clk
0:02:11.5]} 17. Bxb7 {[%clk 0:01:33.8]} 17... Nxb7 {[%clk 0:01:54.1]} 18. Qe4
{[%clk 0:01:34.8]} 18... Bxh2+ {[%clk 0:01:39]} 19. Kxh2 {[%clk 0:01:34.2]}
19... Qxd1 {[%clk 0:01:40.3]} 20. Qxb4+ {[%clk 0:00:38.8]} 20... c5 {[%clk
0:01:37.5]} 21. Qg4 {[%clk 0:00:39.1]} 21... g6 {[%clk 0:01:25.6]} 22. Bxh6+
{[%clk 0:00:24.4]} 22... Rxh6+ {[%clk 0:01:25.5]} 23. Nxh6 {[%clk 0:00:26.3]}
23... Qxa1 {[%clk 0:01:26.9]} 24. Qf4 {[%clk 0:00:23]} 24... Nd8 {[%clk
0:01:23.2]} 25. Ne5 {[%clk 0:00:24.1]} 25... Ra7 {[%clk 0:00:47.4]} 26. Qf6
{[%clk 0:00:24.1]} 26... Qd1 {[%clk 0:00:34.3]} 27. Nxg6+ {[%clk 0:00:09.4]}
27... Ke8 {[%clk 0:00:35.3]} 28. Ne5 {[%clk 0:00:07.6]} 28... Qh5+ {[%clk
0:00:32.8]} 29. Kg1 {[%clk 0:00:08.1]} 29... Qd1+ {[%clk 0:00:33.9]} 30. Kh2
{[%clk 0:00:08.9]} 30... Qd4 {[%clk 0:00:20.9]} 31. Nf5 {[%clk 0:00:09.1]} 31...
Qf4+ {[%clk 0:00:21.2]} 32. Kg1 {[%clk 0:00:09.4]} 32... Qc1+ {[%clk 0:00:22.3]}
33. Kh2 {[%clk 0:00:10.4]} 33... Ne6 {[%clk 0:00:17.2]} 34. Nd6+ {[%clk
0:00:08.6]} 34... Kf8 {[%clk 0:00:18.7]} 35. Nf5 {[%clk 0:00:04.9]} 35... Qf4+
{[%clk 0:00:19]} 36. Kg1 {[%clk 0:00:06.2]} 36... Qc1+ {[%clk 0:00:17]} 37. Kh2
{[%clk 0:00:07.6]} 37... Qf4+ {[%clk 0:00:11.3]} 38. g3 {[%clk 0:00:09]} 38...
Qxf2+ {[%clk 0:00:12.4]} 39. Kh3 {[%clk 0:00:10.5]} 39... Qf1+ {[%clk 0:00:14]}
40. Kg4 {[%clk 0:00:11]} 40... Qd1+ {[%clk 0:00:15]} 41. Kh4 {[%clk 0:00:11.4]}
41... Qh1+ {[%clk 0:00:15.5]} 42. Kg4 {[%clk 0:00:12.6]} 42... Qd1+ {[%clk
0:00:16.9]} 43. Kh4 {[%clk 0:00:13.8]} 43... Ke8 {[%clk 0:00:18.4]} 44. Qh8+
{[%clk 0:00:07.2]} 44... Nf8 {[%clk 0:00:19.9]} 45. Qf6 {[%clk 0:00:08.3]} 45...
Rd7 {[%clk 0:00:16]} 46. Ng7# {[%clk 0:00:09.2]} 1-0

[Event "*** Titled Tuesday 3|2 Blitz"]
[Site "Chess.com"]
[Date "2015.05.05"]
[Round "8"]
[White "DanielRensch"]
[Black "cassoulet"]
[Result "1-0"]
[WhiteElo "2288"]
[BlackElo "2200"]
[TimeControl "180+2"]
[EndTime "12:46:49 PDT"]
[Termination "DanielRensch won by resignation"]

1. e4 {[%clk 0:00:26.8]} 1... c5 {[%clk 0:03:00.1]} 2. Nf3 {[%clk 0:00:27.7]}
2... d6 {[%clk 0:03:01.1]} 3. d4 {[%clk 0:00:29.6]} 3... cxd4 {[%clk 0:03:03]}
4. Nxd4 {[%clk 0:00:31.5]} 4... Nf6 {[%clk 0:03:03.4]} 5. Nc3 {[%clk 0:00:32.8]}
5... Nc6 {[%clk 0:03:05]} 6. Bg5 {[%clk 0:00:33.2]} 6... e6 {[%clk 0:03:06.2]}
7. Bb5 {[%clk 0:00:34.2]} 7... Bd7 {[%clk 0:03:05.3]} 8. Bxc6 {[%clk 0:00:35.3]}
8... bxc6 {[%clk 0:03:05.9]} 9. Qf3 {[%clk 0:00:36.4]} 9... e5 {[%clk
0:03:05.1]} 10. Nf5 {[%clk 0:00:37]} 10... h6 {[%clk 0:02:58.9]} 11. Bh4 {[%clk
0:00:28.8]} 11... g5 {[%clk 0:02:43.2]} 12. Bg3 {[%clk 0:00:29.8]} 12... g4
{[%clk 0:02:43.9]} 13. Qd3 {[%clk 0:00:27.3]} 13... Bxf5 {[%clk 0:02:41.6]} 14.
exf5 {[%clk 0:00:29.2]} 14... Be7 {[%clk 0:02:42.8]} 15. O-O-O {[%clk
0:00:29.3]} 15... Qa5 {[%clk 0:02:42.5]} 16. h3 {[%clk 0:00:25.3]} 16... gxh3
{[%clk 0:02:39.5]} 17. Rxh3 {[%clk 0:00:27.2]} 17... h5 {[%clk 0:02:40.5]} 18.
f4 {[%clk 0:00:25.4]} 18... Rd8 {[%clk 0:02:30.6]} 19. fxe5 {[%clk 0:00:19.5]}
19... dxe5 {[%clk 0:02:31.1]} 20. Qc4 {[%clk 0:00:20.7]} 20... Rxd1+ {[%clk
0:02:27]} 21. Nxd1 {[%clk 0:00:21]} 21... O-O {[%clk 0:01:50.5]} 22. Bh4 {[%clk
0:00:16.5]} 22... Rd8 {[%clk 0:01:51.4]} 23. Nc3 {[%clk 0:00:16.6]} 23... Kf8
{[%clk 0:01:38.8]} 24. Bxf6 {[%clk 0:00:13.4]} 24... Bxf6 {[%clk 0:01:40.7]} 25.
Rxh5 {[%clk 0:00:14.1]} 25... Qb6 {[%clk 0:01:38.7]} 26. b3 {[%clk 0:00:13]}
26... e4 {[%clk 0:01:30.8]} 27. Kb2 {[%clk 0:00:10]} 27... Qb5 {[%clk
0:01:26.6]} 28. Qxe4 {[%clk 0:00:05.5]} 28... Qc5 {[%clk 0:01:15.3]} 29. Rh3
{[%clk 0:00:06.2]} 29... Rd1 {[%clk 0:01:06.5]} 30. Qe3 {[%clk 0:00:05.8]} 30...
Qa5 {[%clk 0:00:39.7]} 31. a3 {[%clk 0:00:05.2]} 31... Rd5 {[%clk 0:00:32]} 32.
b4 {[%clk 0:00:05.8]} 32... Qd8 {[%clk 0:00:30.8]} 33. Kb3 {[%clk 0:00:06.4]}
33... Rxf5 {[%clk 0:00:30.1]} 34. Qh6+ {[%clk 0:00:05.3]} 34... Bg7 {[%clk
0:00:31.1]} 35. Qxc6 {[%clk 0:00:06.6]} 35... Kg8 {[%clk 0:00:26.8]} 36. Rd3
{[%clk 0:00:07.3]} 36... Qe7 {[%clk 0:00:20.1]} 37. Nd5 {[%clk 0:00:07.9]} 37...
Qe5 {[%clk 0:00:19.1]} 38. Qc8+ {[%clk 0:00:08.6]} 38... Kh7 {[%clk 0:00:18.6]}
39. Rh3+ {[%clk 0:00:09.3]} 39... Rh5 {[%clk 0:00:19.8]} 40. Rxh5+ {[%clk
0:00:09.8]} 40... Qxh5 {[%clk 0:00:21.7]} 41. Qd7 {[%clk 0:00:11]} 41... Qg6
{[%clk 0:00:19.5]} 42. Ne3 {[%clk 0:00:07.7]} 42... Kg8 {[%clk 0:00:16.4]} 43.
Qd8+ {[%clk 0:00:08.2]} 43... Kh7 {[%clk 0:00:16.8]} 44. Qd3 {[%clk 0:00:09.1]}
44... Qxd3+ {[%clk 0:00:14.1]} 45. cxd3 {[%clk 0:00:11]} 45... Kg6 {[%clk
0:00:16]} 46. Nc4 {[%clk 0:00:11.9]} 46... Kf5 {[%clk 0:00:16.9]} 47. Nd6+
{[%clk 0:00:12.8]} 47... Ke6 {[%clk 0:00:17.5]} 48. Nb5 {[%clk 0:00:14.1]} 48...
a6 {[%clk 0:00:18.9]} 49. Nc7+ {[%clk 0:00:15.5]} 49... Ke5 {[%clk 0:00:18.7]}
50. Nxa6 {[%clk 0:00:17.4]} 50... Kd4 {[%clk 0:00:20.6]} 51. Nc5 {[%clk
0:00:18.6]} 51... Bf8 {[%clk 0:00:21.9]} 52. a4 {[%clk 0:00:19.5]} 52... f5
{[%clk 0:00:22.7]} 53. a5 {[%clk 0:00:20.6]} 53... Bxc5 {[%clk 0:00:23.6]} 54.
bxc5 {[%clk 0:00:21.6]} 54... Kxc5 {[%clk 0:00:25.5]} 55. Kc3 {[%clk 0:00:23.2]}
1-0

[Event "*** Titled Tuesday 3|2 Blitz"]
[Site "Chess.com"]
[Date "2015.05.05"]
[Round "8"]
[White "dabee"]
[Black "MinhGTrAn"]
[Result "1-0"]
[WhiteElo "2366"]
[BlackElo "2491"]
[TimeControl "180+2"]
[EndTime "12:48:22 PDT"]
[Termination "dabee won by resignation"]

1. d4 {[%clk 0:03:01.9]} 1... Nf6 {[%clk 0:02:02.6]} 2. Bg5 {[%clk 0:03:00.9]}
2... e6 {[%clk 0:02:02]} 3. Nd2 {[%clk 0:03:00.1]} 3... Be7 {[%clk 0:01:58.5]}
4. e3 {[%clk 0:02:59.3]} 4... O-O {[%clk 0:01:57.7]} 5. Bd3 {[%clk 0:02:59]}
5... d6 {[%clk 0:01:53.6]} 6. Ngf3 {[%clk 0:02:57]} 6... Nbd7 {[%clk 0:01:53.9]}
7. c3 {[%clk 0:02:53]} 7... b6 {[%clk 0:01:48.6]} 8. e4 {[%clk 0:02:49.7]} 8...
h6 {[%clk 0:01:46.7]} 9. Bxf6 {[%clk 0:02:45.1]} 9... Bxf6 {[%clk 0:01:44.5]}
10. Qe2 {[%clk 0:02:46.1]} 10... Bb7 {[%clk 0:01:38.4]} 11. h4 {[%clk
0:02:37.8]} 11... c5 {[%clk 0:01:36.2]} 12. g4 {[%clk 0:02:29.4]} 12... cxd4
{[%clk 0:01:35.1]} 13. cxd4 {[%clk 0:02:29.5]} 13... g6 {[%clk 0:01:06.5]} 14.
g5 {[%clk 0:01:57.7]} 14... hxg5 {[%clk 0:01:06.7]} 15. hxg5 {[%clk 0:01:57.9]}
15... Bg7 {[%clk 0:01:07.4]} 16. O-O-O {[%clk 0:01:55.3]} 16... a6 {[%clk
0:00:38.1]} 17. Rh4 {[%clk 0:01:31.8]} 17... b5 {[%clk 0:00:34.4]} 18. Rdh1
{[%clk 0:01:31.9]} 18... Qe7 {[%clk 0:00:19.9]} 19. Qf1 {[%clk 0:01:30.3]} 19...
Rfc8+ {[%clk 0:00:21.2]} 20. Kb1 {[%clk 0:01:29.9]} 20... Kf8 {[%clk 0:00:15.4]}
21. Rh7 {[%clk 0:01:16.5]} 21... f6 {[%clk 0:00:09.3]} 22. Qh3 {[%clk
0:00:58.8]} 22... f5 {[%clk 0:00:07.3]} 23. d5 {[%clk 0:00:44.1]} 23... Nc5
{[%clk 0:00:06.8]} 24. Rh8+ {[%clk 0:00:38.7]} 24... Kf7 {[%clk 0:00:07.2]} 25.
dxe6+ {[%clk 0:00:39.4]} 25... Qxe6 {[%clk 0:00:04.7]} 26. Rxc8 {[%clk
0:00:39.3]} 26... Bxc8 {[%clk 0:00:04.3]} 27. exf5 {[%clk 0:00:40.3]} 27... gxf5
{[%clk 0:00:05.4]} 28. g6+ {[%clk 0:00:35.2]} 28... Qxg6 {[%clk 0:00:06.8]} 29.
Rg1 {[%clk 0:00:33.9]} 29... Qf6 {[%clk 0:00:08.3]} 30. Ng5+ {[%clk 0:00:29.2]}
30... Ke7 {[%clk 0:00:09.8]} 31. Kc2 {[%clk 0:00:12.7]} 31... Qxb2+ {[%clk
0:00:09.8]} 32. Kd1 {[%clk 0:00:13.8]} 32... Be6 {[%clk 0:00:11.1]} 33. Nxe6
{[%clk 0:00:13.3]} 33... Nxe6 {[%clk 0:00:13]} 34. Qxf5 {[%clk 0:00:14]} 34...
Rf8 {[%clk 0:00:12.7]} 35. Qd5 {[%clk 0:00:11.7]} 35... Rxf2 {[%clk 0:00:12.3]}
36. Qb7+ {[%clk 0:00:12.6]} 36... Kf8 {[%clk 0:00:11.2]} 37. Qc8+ {[%clk
0:00:11.6]} 37... Ke7 {[%clk 0:00:12.4]} 38. Qb7+ {[%clk 0:00:12.2]} 38... Kd8
{[%clk 0:00:14]} 39. Qb6+ {[%clk 0:00:10]} 39... Ke7 {[%clk 0:00:11.3]} 40. Qxf2
{[%clk 0:00:10.7]} 40... Qxa2 {[%clk 0:00:06.6]} 41. Qa7+ {[%clk 0:00:10.6]}
41... Kf6 {[%clk 0:00:05.8]} 42. Rf1+ {[%clk 0:00:10.4]} 42... Ke5 {[%clk
0:00:03.6]} 43. Re1+ {[%clk 0:00:04.9]} 43... Kf6 {[%clk 0:00:04.3]} 44. Qf2+
{[%clk 0:00:03.4]} 44... Ke7 {[%clk 0:00:05.2]} 45. Bf5 {[%clk 0:00:04]} 45...
Be5 {[%clk 0:00:05.1]} 46. Bxe6 {[%clk 0:00:04.2]} 46... Kxe6 {[%clk 0:00:07]}
47. Qe3 {[%clk 0:00:05.1]} 47... Qa4+ {[%clk 0:00:07.3]} 48. Qb3+ {[%clk
0:00:05.6]} 48... Qxb3+ {[%clk 0:00:06.8]} 49. Nxb3 {[%clk 0:00:06.8]} 49... Kd5
{[%clk 0:00:08.7]} 50. Kc2 {[%clk 0:00:07.7]} 50... Kc4 {[%clk 0:00:09.3]} 51.
Rd1 {[%clk 0:00:08.4]} 51... Kb4 {[%clk 0:00:08.8]} 52. Nd2 {[%clk 0:00:10.3]}
52... a5 {[%clk 0:00:09.6]} 53. Rb1+ {[%clk 0:00:11.5]} 53... Kc5 {[%clk
0:00:10.1]} 54. Ne4+ {[%clk 0:00:12.6]} 54... Kc4 {[%clk 0:00:09.5]} 55. Nd2+
{[%clk 0:00:12.8]} 55... Kc5 {[%clk 0:00:09.9]} 56. Nf3 {[%clk 0:00:08.7]} 56...
Bf6 {[%clk 0:00:10]} 57. Nd2 {[%clk 0:00:08.5]} 57... a4 {[%clk 0:00:11.2]} 58.
Ne4+ {[%clk 0:00:09.3]} 58... Kc4 {[%clk 0:00:10.4]} 59. Nxf6 {[%clk 0:00:11.2]}
59... b4 {[%clk 0:00:11.9]} 60. Ne4 {[%clk 0:00:10.6]} 60... b3+ {[%clk
0:00:13.4]} 61. Kb2 {[%clk 0:00:11.7]} 61... Kb4 {[%clk 0:00:15]} 62. Ra1 {[%clk
0:00:11.7]} 62... d5 {[%clk 0:00:16.6]} 63. Nd2 {[%clk 0:00:12.5]} 63... d4
{[%clk 0:00:16.7]} 64. Nxb3 {[%clk 0:00:13.3]} 64... axb3 {[%clk 0:00:18.6]} 65.
Ra8 {[%clk 0:00:12.6]} 65... Kc4 {[%clk 0:00:19.2]} 66. Rc8+ {[%clk 0:00:13]}
66... Kd3 {[%clk 0:00:20.6]} 67. Kxb3 {[%clk 0:00:13.3]} 67... Ke2 {[%clk
0:00:22.5]} 68. Re8+ {[%clk 0:00:12.2]} 68... Kd2 {[%clk 0:00:23]} 69. Kc4
{[%clk 0:00:12.7]} 1-0

[Event "*** Titled Tuesday 3|2 Blitz"]
[Site "Chess.com"]
[Date "2015.05.05"]
[Round "9"]
[White "Konavets"]
[Black "jcibarra"]
[Result "0-1"]
[WhiteElo "2454"]
[BlackElo "2532"]
[TimeControl "180+2"]
[EndTime "13:03:30 PDT"]
[Termination "jcibarra won by resignation"]

1. e4 {[%clk 0:03:01.9]} 1... e5 {[%clk 0:02:59.6]} 2. Nf3 {[%clk 0:03:02.8]}
2... d6 {[%clk 0:02:58]} 3. d4 {[%clk 0:03:03.5]} 3... exd4 {[%clk 0:02:59.4]}
4. Nxd4 {[%clk 0:03:05.4]} 4... Nf6 {[%clk 0:03:00.4]} 5. Nc3 {[%clk 0:03:07.3]}
5... Be7 {[%clk 0:03:01.7]} 6. Be2 {[%clk 0:03:09.1]} 6... O-O {[%clk
0:03:02.8]} 7. Bf4 {[%clk 0:03:10.7]} 7... Re8 {[%clk 0:03:03.2]} 8. Qd2 {[%clk
0:03:06.4]} 8... Bf8 {[%clk 0:02:50.7]} 9. f3 {[%clk 0:03:04.5]} 9... Nc6 {[%clk
0:02:40.5]} 10. O-O-O {[%clk 0:02:48.9]} 10... Nxd4 {[%clk 0:02:34.7]} 11. Qxd4
{[%clk 0:02:48.5]} 11... Be6 {[%clk 0:02:36.3]} 12. g4 {[%clk 0:02:47.8]} 12...
a6 {[%clk 0:02:33.3]} 13. h4 {[%clk 0:02:47.5]} 13... c5 {[%clk 0:02:33.3]} 14.
Qd2 {[%clk 0:02:47.2]} 14... Qa5 {[%clk 0:02:34]} 15. Kb1 {[%clk 0:02:45.2]}
15... b5 {[%clk 0:02:33]} 16. Nd5 {[%clk 0:02:42.8]} 16... Qxd2 {[%clk
0:02:14.2]} 17. Nxf6+ {[%clk 0:02:42.8]} 17... gxf6 {[%clk 0:02:16.1]} 18. Rxd2
{[%clk 0:02:44.6]} 18... d5 {[%clk 0:02:17.5]} 19. exd5 {[%clk 0:02:24.5]} 19...
Bxd5 {[%clk 0:02:18.7]} 20. Bxb5 {[%clk 0:02:25.7]} 20... Bxa2+ {[%clk
0:02:08.1]} 21. Kxa2 {[%clk 0:02:24]} 21... axb5+ {[%clk 0:02:10]} 22. Kb3
{[%clk 0:02:06.7]} 22... Ra4 {[%clk 0:02:11.3]} 23. Bh2 {[%clk 0:01:43.8]} 23...
c4+ {[%clk 0:02:11.5]} 0-1

[Event "*** Titled Tuesday 3|2 Blitz"]
[Site "Chess.com"]
[Date "2015.05.05"]
[Round "9"]
[White "AlmirDzhumaev"]
[Black "Mvpag"]
[Result "1-0"]
[WhiteElo "2072"]
[BlackElo "1920"]
[TimeControl "180+2"]
[EndTime "13:05:31 PDT"]
[Termination "AlmirDzhumaev won by resignation"]

1. e4 {[%clk 0:03:01.9]} 1... e5 {[%clk 0:03:00.6]} 2. Nf3 {[%clk 0:03:02.8]}
2... Nc6 {[%clk 0:03:02.1]} 3. d4 {[%clk 0:03:04.2]} 3... exd4 {[%clk
0:03:02.8]} 4. Nxd4 {[%clk 0:03:02.6]} 4... Nf6 {[%clk 0:03:02.1]} 5. Nxc6
{[%clk 0:03:03.8]} 5... bxc6 {[%clk 0:03:03]} 6. Bd3 {[%clk 0:03:05.7]} 6... d6
{[%clk 0:03:04.2]} 7. O-O {[%clk 0:03:06.4]} 7... Be7 {[%clk 0:03:05.8]} 8. c4
{[%clk 0:03:01.2]} 8... O-O {[%clk 0:03:06.3]} 9. b3 {[%clk 0:03:02.2]} 9... a5
{[%clk 0:03:06.8]} 10. Bb2 {[%clk 0:03:03.3]} 10... Rb8 {[%clk 0:03:06.8]} 11.
Nc3 {[%clk 0:03:03.8]} 11... Be6 {[%clk 0:03:05.5]} 12. Qd2 {[%clk 0:03:03.6]}
12... Ng4 {[%clk 0:02:59.6]} 13. Be2 {[%clk 0:02:59.1]} 13... Nf6 {[%clk
0:02:57.1]} 14. Rad1 {[%clk 0:02:56.6]} 14... Qc8 {[%clk 0:02:57.2]} 15. Qg5
{[%clk 0:02:45.5]} 15... Kh8 {[%clk 0:02:29]} 16. Qe3 {[%clk 0:02:27.8]} 16...
Bg4 {[%clk 0:02:22.6]} 17. f3 {[%clk 0:02:27.6]} 17... Be6 {[%clk 0:02:22]} 18.
e5 {[%clk 0:02:19.9]} 18... dxe5 {[%clk 0:02:13.8]} 19. Qxe5 {[%clk 0:02:18.5]}
19... Bd6 {[%clk 0:02:12.7]} 20. Qg5 {[%clk 0:02:15.2]} 20... h6 {[%clk
0:02:09.7]} 21. Qh4 {[%clk 0:02:12.3]} 21... Be7 {[%clk 0:02:00.8]} 22. Ne4
{[%clk 0:02:10.9]} 22... Kh7 {[%clk 0:00:26]} 23. Nxf6+ {[%clk 0:02:10.8]} 23...
Bxf6 {[%clk 0:00:24.1]} 24. Bd3+ {[%clk 0:02:09.7]} 24... Kg8 {[%clk 0:00:20.7]}
25. Bxf6 {[%clk 0:02:10.1]} 25... gxf6 {[%clk 0:00:21.9]} 26. Qxf6 {[%clk
0:02:09.5]} 26... a4 {[%clk 0:00:18.5]} 27. Qxh6 {[%clk 0:02:10.1]} 27... Bf5
{[%clk 0:00:17.6]} 28. Qg5+ {[%clk 0:02:11]} 28... Bg6 {[%clk 0:00:18.9]} 29.
Bxg6 {[%clk 0:02:11.6]} 29... fxg6 {[%clk 0:00:20.2]} 30. Qxg6+ {[%clk
0:02:12.9]} 30... Kh8 {[%clk 0:00:21.7]} 31. Rd4 {[%clk 0:02:13.4]} 31... Qd8
{[%clk 0:00:18.3]} 32. Rxd8 {[%clk 0:02:12.8]} 1-0

[Event "*** Titled Tuesday 3|2 Blitz"]
[Site "Chess.com"]
[Date "2015.05.05"]
[Round "9"]
[White "salomez"]
[Black "esr44"]
[Result "1-0"]
[WhiteElo "2152"]
[BlackElo "2046"]
[TimeControl "180+2"]
[EndTime "13:05:41 PDT"]
[Termination "salomez won by resignation"]

1. e4 {[%clk 0:02:59.1]} 1... c6 {[%clk 0:02:59]} 2. d4 {[%clk 0:02:58.5]} 2...
d5 {[%clk 0:03:00.5]} 3. e5 {[%clk 0:02:57.9]} 3... c5 {[%clk 0:03:02]} 4. dxc5
{[%clk 0:02:57.4]} 4... e6 {[%clk 0:03:03.2]} 5. Be3 {[%clk 0:02:51.7]} 5... Nh6
{[%clk 0:03:03.9]} 6. Bxh6 {[%clk 0:02:51.3]} 6... gxh6 {[%clk 0:03:04.6]} 7.
Nf3 {[%clk 0:02:49.1]} 7... Bxc5 {[%clk 0:03:04.2]} 8. Bd3 {[%clk 0:02:45.5]}
8... Qb6 {[%clk 0:03:02.9]} 9. O-O {[%clk 0:02:44.4]} 9... Qxb2 {[%clk
0:03:03.8]} 10. Nbd2 {[%clk 0:02:45.3]} 10... Qb6 {[%clk 0:03:04.5]} 11. Nb3
{[%clk 0:02:45.5]} 11... Be7 {[%clk 0:03:03.1]} 12. Qd2 {[%clk 0:02:42.9]} 12...
Nc6 {[%clk 0:02:47.7]} 13. Qxh6 {[%clk 0:02:42.1]} 13... Bd7 {[%clk 0:02:49.4]}
14. Rab1 {[%clk 0:02:40.1]} 14... Qc7 {[%clk 0:02:47.2]} 15. Rfe1 {[%clk
0:02:35.1]} 15... O-O-O {[%clk 0:02:45.4]} 16. Nbd4 {[%clk 0:02:25.3]} 16... a6
{[%clk 0:02:40]} 17. Nxc6 {[%clk 0:02:15.5]} 17... Bxc6 {[%clk 0:02:34.6]} 18.
Nd4 {[%clk 0:02:15.9]} 18... Bc5 {[%clk 0:02:31.9]} 19. c3 {[%clk 0:02:11.4]}
19... Rhg8 {[%clk 0:02:10.4]} 20. Qxh7 {[%clk 0:02:04.4]} 20... Rg5 {[%clk
0:02:02.6]} 21. Nxc6 {[%clk 0:02:00.6]} 21... Qxc6 {[%clk 0:01:58.5]} 22. Qxf7
{[%clk 0:01:58.8]} 22... Rdg8 {[%clk 0:01:59.2]} 23. g3 {[%clk 0:01:55]} 23...
R8g7 {[%clk 0:01:45.8]} 24. Qf6 {[%clk 0:01:50.3]} 24... b5 {[%clk 0:01:38.7]}
25. a4 {[%clk 0:01:45.4]} 25... d4 {[%clk 0:01:24.4]} 26. Be4 {[%clk 0:01:45.4]}
26... Qb6 {[%clk 0:01:17.2]} 27. cxd4 {[%clk 0:01:29.6]} 27... Bxd4 {[%clk
0:01:17.7]} 28. Rec1+ {[%clk 0:01:30]} 28... Bc5 {[%clk 0:00:46.2]} 29. Qf8+
{[%clk 0:01:26]} 1-0